bitfinex/quotes_ETHUSD_20240811
["timestamp","ask_amount","ask_price","bid_price","bid_amount"]
[1723382852234,2.66285,2628.8,2628.3,2.4552]
[1723382852436,2.66267,2629.0,2628.4,2.66316]
[1723382852620,2.66267,2629.0,2628.5,2.4552]
[1723382853363,2.66288,2628.8,2628.5,2.4552]
[1723382853854,2.66291,2628.7,2628.6,0.04978268]
[1723382854430,5.3259,2628.7,2628.6,0.04978268]
[1723382854663,2.66326,2628.4,2628.2,2.4552]
[1723382855162,2.66305,2628.6,2628.2,2.4552]
[1723382855548,5.32612,2628.6,2628.2,2.4552]
[1723382855748,2.66305,2628.6,2628.2,2.4552]
[1723382856059,2.66312,2628.5,2628.3,0.04995799]
[1723382856562,2.66312,2628.5,2628.2,2.4552]
[1723382856922,2.66312,2628.5,2628.3,0.04995799]
[1723382857459,2.66312,2628.5,2628.2,2.4552]
[1723382857767,2.66312,2628.5,2628.3,0.04995799]
[1723382858245,2.66312,2628.5,2628.2,2.4552]
[1723382858446,2.66305,2628.6,2628.2,2.4552]
[1723382858643,5.32615,2628.6,2628.3,0.04995799]
[1723382859046,5.32615,2628.6,2628.2,2.4552]
[1723382859458,2.66312,2628.5,2628.3,0.05077211]
[1723382860850,2.66321,2628.4,2628.3,0.05077211]
[1723382861179,5.32635,2628.5,2627.9,5.11886]
[1723382861338,2.66322,2628.4,2627.9,2.4552]
[1723382861538,2.66322,2628.4,2628.0,0.05095088]
[1723382861964,2.66334,2628.3,2628.0,0.05095088]
[1723382862740,2.66322,2628.4,2628.0,0.05095088]
[1723382863768,7.3,2628.9,2628.0,0.56794197]
[1723382863937,2.66301,2628.6,2628.1,2.4552]
[1723382864479,2.6632,2628.5,2628.2,0.05083398]
[1723382864780,2.66301,2628.6,2628.2,0.05083398]
[1723382864940,2.66288,2628.8,2628.2,0.05083398]
[1723382864941,5.32578,2628.8,2628.2,0.05083398]
[1723382865267,2.66292,2628.7,2628.2,0.05083398]
[1723382865465,2.66292,2628.7,2628.2,0.56778238]
[1723382865675,7.3,2628.9,2628.4,2.66315]
[1723382865843,7.3,2628.9,2628.5,2.4021]
[1723382866280,7.3,2628.9,2628.6,0.05057284]
[1723382868555,7.29242857,2628.9,2628.6,0.05057284]
[1723382868768,9.95514857,2628.9,2628.6,0.05057284]
[1723382869281,2.66284,2628.8,2628.6,0.05057284]
[1723382869887,7.29242857,2628.9,2628.6,0.05057284]
[1723382870057,7.29242857,2628.9,2628.6,2.71353284]
[1723382870258,7.29242857,2628.9,2628.5,2.4021]
[1723382870473,7.29242857,2628.9,2628.7,0.05040834]
[1723382870682,12.61793857,2628.9,2628.5,2.4021]
[1723382870876,9.95513857,2628.9,2628.5,2.4021]
[1723382871185,2.66271,2628.9,2628.6,0.05046677]
[1723382871388,5.32548,2628.9,2628.6,0.05046677]
[1723382871589,2.66271,2628.9,2628.5,2.4021]
[1723382871885,5.32548,2628.9,2628.5,2.4021]
[1723382872084,2.66271,2628.9,2628.6,0.05046677]
[1723382872385,21.89112857,2629.2,2628.5,2.4021]
[1723382872386,2.66289,2628.8,2628.5,2.4021]
[1723382872575,2.66289,2628.8,2628.7,0.05040834]
[1723382872773,2.66289,2628.8,2628.5,2.4021]
[1723382872979,2.66289,2628.8,2628.7,0.05029201]
[1723382873203,2.66292,2628.7,2628.2,5.06544]
[1723382873514,2.66292,2628.7,2628.3,0.266334]
[1723382873724,2.66292,2628.7,2628.3,0.31685975]
[1723382874515,2.4087,2629.1,2628.3,0.05052575]
[1723382874815,2.66321,2628.4,2627.9,2.4021]
[1723382875317,2.66337,2628.3,2628.0,0.0507011]
[1723382875812,0.266312,2628.4,2628.1,0.05064265]
[1723382875983,2.66317,2628.5,2628.1,2.4021]
[1723382876185,2.66317,2628.5,2628.2,0.0505842]
[1723382877173,2.66317,2628.5,2628.1,2.4021]
[1723382877377,2.66321,2628.4,2628.3,0.05052575]
[1723382877614,2.66321,2628.4,2628.1,2.4021]
[1723382877986,2.66321,2628.4,2628.2,0.0505842]
[1723382878677,2.66331,2628.3,2628.2,0.0505842]
[1723382878874,5.592951,2628.3,2628.2,0.0505842]
[1723382879111,2.66348,2628.2,2627.7,2.4021]
[1723382879609,2.66352,2628.1,2627.8,0.05081803]
[1723382879774,2.66352,2628.1,2627.7,2.4021]
[1723382879977,9.95535857,2628.7,2627.9,2.71441956]
[1723382879978,2.66326,2628.4,2627.9,2.71441956]
[1723382880198,2.66308,2628.6,2627.8,0.24021]
[1723382880418,2.66308,2628.6,2628.0,2.7142211]
[1723382880628,2.66308,2628.6,2628.0,2.66352]
[1723382880803,2.66317,2628.5,2628.1,0.05084797]
[1723382881632,7.29242857,2628.7,2628.2,2.66337]
[1723382881802,7.29242857,2628.7,2628.3,5.06536]
[1723382882127,7.29242857,2628.7,2628.3,5.11609107]
[1723382882288,9.95541857,2628.7,2628.3,2.45283107]
[1723382882489,2.66321,2628.4,2628.3,0.05073107]
[1723382882725,2.66321,2628.4,2627.7,2.66386]
[1723382882726,2.66336,2628.3,2627.7,2.66386]
[1723382883227,2.66336,2628.3,2627.8,0.05097201]
[1723382883392,2.66336,2628.3,2627.7,2.66386]
[1723382883593,2.66336,2628.3,2627.9,0.05091354]
[1723382883794,5.32673,2628.3,2627.8,0.55756801]
[1723382884099,2.66344,2628.2,2627.9,0.05091354]
[1723382884361,2.66352,2628.1,2627.9,0.05091354]
[1723382884694,0.266336,2628.2,2627.3,2.66423]
[1723382884695,2.66389,2627.8,2627.3,2.4021]
[1723382885228,2.66414,2627.5,2626.8,2.4277]
[1723382885528,2.64060652,2627.3,2626.8,2.4277]
[1723382885893,4.98544,2627.7,2626.8,2.936967]
[1723382885894,2.66397,2627.7,2626.8,2.936967]
[1723382886091,2.66397,2627.7,2627.1,2.66452]
[1723382886291,2.66378,2627.9,2626.5,2.4277]
[1723382886292,4.98559,2627.6,2626.5,2.4277]
[1723382886533,2.66429,2627.4,2626.6,0.24277]
[1723382886838,2.3215,2627.6,2626.6,2.90772]
[1723382886839,2.66444,2627.2,2626.6,2.90772]
[1723382887195,2.66428,2627.4,2626.6,2.90772]
[1723382887396,2.66428,2627.4,2626.8,2.66477]
[1723382887630,2.66404,2627.6,2627.0,2.66457]
[1723382888444,3.37638972,2627.8,2626.9,2.50382963]
[1723382888629,2.66389,2627.8,2627.2,2.66438]
[1723382888825,2.66389,2627.8,2627.0,2.66457]
[1723382889042,2.66403,2627.6,2627.1,2.66452]
[1723382889241,2.66389,2627.8,2626.9,5.1684867]
[1723382889560,2.66389,2627.8,2627.2,2.66437]
[1723382890147,2.66393,2627.7,2627.2,2.66437]
[1723382890351,2.66402,2627.6,2627.0,5.84596867]
[1723382890521,2.66392,2627.7,2627.1,2.66451]
[1723382890726,2.66389,2627.8,2627.2,3.24899987]
[1723382890922,2.66403,2627.6,2627.0,5.84596867]
[1723382891320,2.66403,2627.6,2627.1,2.66452]
[1723382891537,5.32811,2627.6,2627.1,1.09381887]
[1723382891728,2.66403,2627.6,2627.0,2.66454]
[1723382892457,2.66403,2627.6,2627.1,0.05193935]
[1723382892756,9.61392857,2627.9,2627.1,0.05193935]
[1723382892954,2.66434,2627.3,2627.1,0.05193935]
[1723382893165,2.66434,2627.3,2626.9,2.4277]
[1723382893363,2.66434,2627.3,2627.2,0.05188086]
[1723382893574,2.66434,2627.3,2626.7,2.66493]
[1723382893738,2.66464,2627.0,2626.4,2.66516]
[1723382893938,2.66476,2626.9,2626.4,2.66516]
[1723382894240,4.98596,2627.2,2626.3,2.4277]
[1723382894434,4.98596,2627.2,2625.6,2.38429121]
[1723382894435,2.66516,2626.5,2625.9,5.09338]
[1723382894761,2.66516,2626.5,2625.9,5.09342]
[1723382895064,2.3215,2626.9,2626.0,2.66558]
[1723382895265,2.3215,2626.9,2625.9,2.4277]
[1723382895266,2.66505,2626.6,2625.9,2.4277]
[1723382895438,2.66505,2626.6,2625.6,2.66599]
[1723382895439,5.33096,2626.2,2625.6,2.66599]
[1723382895622,2.66556,2626.1,2625.5,2.66613]
[1723382896149,2.66528,2626.4,2625.6,2.66599]
[1723382896325,2.66528,2626.4,2625.7,2.932459]
[1723382896530,9.61392857,2626.5,2625.4,2.50993606]
[1723382896531,2.66539,2626.3,2625.6,2.66605]
[1723382896862,22.43539,2626.3,2625.6,2.66605]
[1723382897079,2.66594,2625.8,2625.4,0.08223606]
[1723382897235,2.8715,2626.2,2625.4,0.08223606]
[1723382897236,5.33198,2625.7,2625.4,0.08223606]
[1723382897445,2.66596,2625.7,2625.4,0.08223606]
[1723382897672,2.66607,2625.6,2625.4,0.08223606]
[1723382897961,2.66615,2625.5,2625.4,0.08223606]
[1723382898165,9.95809857,2626.0,2625.4,0.08223606]
[1723382898166,7.29242857,2626.0,2625.4,0.08223606]
[1723382898373,2.66591,2625.8,2625.4,0.08223606]
[1723382898538,2.66585,2625.8,2625.4,0.08223606]
[1723382898879,2.66606,2625.6,2625.4,0.08223606]
[1723382899030,3.89387786,2625.8,2625.4,0.08223606]
[1723382899411,9.61392857,2626.0,2625.4,2.50993606]
[1723382899412,9.95813857,2626.0,2625.4,2.50993606]
[1723382899577,12.19,2626.3,2625.7,2.66585]
[1723382899731,7.29242857,2626.4,2625.9,2.66574]
[1723382900072,5.33123,2626.1,2625.5,2.66607]
[1723382900278,2.6656,2626.1,2625.5,6.11640361]
[1723382900435,7.29242857,2626.4,2625.8,2.6658]
[1723382900769,7.29242857,2626.4,2625.9,2.66574]
[1723382901065,7.29242857,2626.4,2625.9,0.533154]
[1723382901239,7.29242857,2626.4,2626.0,0.05304546]
[1723382901643,7.29242857,2626.4,2626.0,2.71868546]
[1723382901846,12.62202857,2626.9,2626.2,2.66536]
[1723382902046,2.66489,2626.8,2626.2,3.44653055]
[1723382902265,2.66494,2626.7,2626.3,0.05286984]
[1723382902464,9.95720857,2626.9,2626.3,3.01523304]
[1723382902671,2.66496,2626.7,2626.4,0.05281131]
[1723382903057,2.66495,2626.7,2626.2,0.78117055]
[1723382903265,12.62201857,2626.9,2626.5,0.05275278]
[1723382903444,7.29242857,2626.9,2626.3,0.34466206]
[1723382903639,7.29242857,2626.9,2626.6,0.05269426]
[1723382903875,7.29242857,2626.9,2626.0,2.66559]
[1723382903876,2.66494,2626.7,2626.0,2.66559]
[1723382904178,2.66495,2626.7,2626.1,0.05298692]
[1723382904403,2.66506,2626.6,2625.9,2.960854]
[1723382904578,2.66489,2626.8,2626.2,0.05292838]
[1723382904788,7.29242857,2626.9,2626.0,0.5626644]
[1723382904946,2.66489,2626.8,2626.3,0.05286984]
[1723382905279,2.66489,2626.8,2626.2,2.66539]
[1723382905482,9.95720857,2626.9,2626.4,0.05281131]
[1723382905645,9.95720857,2626.9,2626.3,0.05286984]
[1723382905839,9.95720857,2626.9,2626.5,0.05275278]
[1723382906044,2.66495,2626.7,2625.9,2.4277]
[1723382906272,7.29242857,2626.9,2626.6,2.66504]
[1723382906455,2.66461,2627.1,2626.5,2.3257]
[1723382906663,2.66461,2627.1,2626.7,0.05275911]
[1723382906846,2.66461,2627.1,2626.5,2.824787]
[1723382907044,12.19,2627.2,2626.7,2.66493]
[1723382907290,7.29242857,2627.3,2626.7,2.66493]
[1723382907488,7.29242857,2627.3,2626.6,2.66501]
[1723382907651,9.95617857,2627.9,2627.2,2.66437]
[1723382907992,2.66416,2627.5,2626.8,2.66476]
[1723382908201,2.66416,2627.5,2626.7,3.499071]
[1723382908202,2.66436,2627.3,2626.7,6.163981]
[1723382908489,2.66436,2627.3,2626.8,0.8489681]
[1723382909758,5.04877,2627.5,2626.8,0.8489681]
[1723382909965,5.04877,2627.5,2626.6,4.99067]
[1723382910352,7.29242857,2627.6,2626.8,2.66481]
[1723382910707,7.29242857,2627.6,2627.0,5.32912]
[1723382911023,9.95645857,2627.6,2627.0,2.66454]
[1723382911173,9.95645857,2627.6,2627.1,0.266454]
[1723382911594,7.29242857,2627.6,2627.2,2.66441]
[1723382911795,7.29242857,2627.6,2627.2,2.3257]
[1723382911982,7.29242857,2627.6,2627.1,0.34256919]
[1723382912189,7.29242857,2627.6,2626.9,5.66472]
[1723382912520,2.66308,2628.6,2627.5,2.3257]
[1723382912686,2.66297,2628.7,2628.0,2.66357]
[1723382913006,2.3846,2629.1,2628.0,2.929877]
[1723382913007,5.04713,2629.1,2628.0,2.929877]
[1723382913212,2.66298,2628.7,2628.1,2.66349]
[1723382913503,2.66298,2628.7,2628.1,2.6635]
[1723382913804,5.04713,2629.1,2628.4,2.66314]
[1723382913805,2.3846,2629.1,2628.4,2.66314]
[1723382913969,7.29242857,2629.5,2628.4,0.50649332]
[1723382913970,2.66272,2628.9,2628.4,0.50649332]
[1723382914178,2.66263,2629.0,2628.2,4.98906]
[1723382914575,2.66263,2629.0,2628.3,2.66322]
[1723382914787,2.66256,2629.1,2628.2,2.3257]
[1723382915011,2.66242,2629.2,2628.2,2.3257]
[1723382915222,2.66289,2628.8,2628.2,2.3257]
[1723382915373,2.66289,2628.8,2628.2,4.9891]
[1723382915711,2.66273,2628.9,2628.2,4.9891]
[1723382916286,2.66289,2628.8,2628.2,4.9891]
[1723382916477,2.66273,2628.9,2628.2,5.7809317]
[1723382916682,2.66255,2629.1,2628.4,2.66321]
[1723382916873,2.66261,2629.0,2628.4,2.66321]
[1723382917390,2.66255,2629.1,2628.5,2.66301]
[1723382917595,2.66235,2629.3,2628.6,2.66296]
[1723382917905,2.66235,2629.3,2628.7,2.66289]
[1723382918314,2.66235,2629.3,2628.8,2.6628]
[1723382919209,12.95458857,2629.5,2628.8,2.66275]
[1723382919378,12.95458857,2629.5,2628.8,5.26233277]
[1723382919570,12.95458857,2629.5,2628.9,2.66263]
[1723382919827,0.59591976,2629.8,2629.0,0.05023995]
[1723382920004,19.48242857,2629.9,2629.4,2.66213]
[1723382920206,2.66151,2630.1,2629.5,5.32413]
[1723382920375,7.29242857,2630.2,2629.6,2.66193]
[1723382920706,7.29242857,2630.2,2629.7,0.04971829]
[1723382921296,2.66155,2630.1,2629.7,0.04971829]
[1723382921501,2.66201,2629.6,2629.0,2.66255]
[1723382921937,5.3241,2629.6,2629.0,2.66255]
[1723382922106,2.66185,2629.8,2629.0,2.66252]
[1723382922411,2.66185,2629.8,2629.2,2.66239]
[1723382922716,2.662,2629.6,2629.1,0.04983955]
[1723382923016,2.66183,2629.8,2629.3,0.04972274]
[1723382923312,3.190321,2629.8,2629.2,0.04978114]
[1723382923512,3.190321,2629.8,2629.0,2.66252]
[1723382923513,3.190321,2629.8,2629.4,0.04966434]
[1723382923690,5.852191,2629.8,2629.3,0.04972274]
[1723382923887,5.32368,2629.8,2629.2,2.26239]
[1723382924101,2.66183,2629.8,2629.4,0.04966434]
[1723382924280,2.66183,2629.8,2629.3,0.04972274]
[1723382924481,0.23846,2629.9,2629.3,2.66223]
[1723382924808,2.90022,2629.9,2629.4,0.04966434]
[1723382925014,2.66195,2629.7,2629.4,0.04966434]
[1723382925216,0.23846,2629.9,2629.0,2.66255]
[1723382925392,2.66184,2629.8,2628.8,5.26233277]
[1723382925719,2.66208,2629.6,2628.9,3.04995637]
[1723382926237,9.95386857,2630.2,2629.3,2.66222]
[1723382926385,9.95386857,2630.2,2629.2,2.4524]
[1723382926386,9.95386857,2630.2,2629.4,0.511462]
[1723382926694,2.66093,2630.7,2629.8,2.4524]
[1723382926695,2.66128,2630.4,2629.8,2.4524]
[1723382926898,7.29242857,2630.7,2629.8,2.4524]
[1723382927105,7.29242857,2630.7,2629.9,0.04937242]
[1723382927106,2.6616,2630.0,2629.9,0.04937242]
[1723382927286,2.92776,2630.0,2629.5,2.4524]
[1723382927489,2.66176,2629.9,2629.5,2.4524]
[1723382927682,2.6618,2629.8,2629.6,0.049014]
[1723382928103,2.6616,2630.0,2629.6,0.049014]
[1723382928305,2.66163,2630.0,2629.6,0.049014]
[1723382928610,2.66176,2629.9,2629.6,0.049014]
[1723382929183,2.66153,2630.1,2629.6,0.049014]
[1723382929472,5.32311,2630.1,2629.6,0.049014]
[1723382929644,2.66153,2630.1,2629.6,0.049014]
[1723382929927,2.66153,2630.1,2629.6,0.5653684]
[1723382930128,2.66153,2630.1,2629.6,0.049014]
[1723382930299,2.66136,2630.3,2629.7,2.66188]
[1723382930501,2.66145,2630.2,2629.6,0.049014]
[1723382930696,2.66145,2630.2,2629.8,0.04885279]
[1723382930890,2.66135,2630.3,2629.7,0.04891117]
[1723382931094,2.66135,2630.3,2629.9,0.04879442]
[1723382931418,2.66135,2630.3,2629.6,3.1782834]
[1723382931589,5.3227,2630.3,2630.0,0.04873605]
[1723382931790,5.3227,2630.3,2629.7,0.82927034]
[1723382932136,2.66134,2630.3,2629.8,0.04885279]
[1723382932423,2.66134,2630.3,2629.7,0.82927034]
[1723382932424,2.66144,2630.2,2629.7,0.82927034]
[1723382932630,2.66144,2630.2,2629.9,0.04879442]
[1723382932787,2.66157,2630.1,2629.8,0.04885279]
[1723382933095,2.66169,2629.9,2629.5,2.4524]
[1723382933304,2.66156,2630.1,2629.5,2.4524]
[1723382933811,2.66156,2630.1,2629.5,5.11444]
[1723382934000,2.6614,2630.2,2629.6,3.439648]
[1723382934206,2.6614,2630.2,2629.6,0.777658]
[1723382934508,2.66152,2630.1,2629.6,0.777658]
[1723382934702,2.66152,2630.1,2629.6,3.439648]
[1723382935207,2.66135,2630.3,2629.6,6.101568]
[1723382935526,2.66135,2630.3,2629.8,2.4524]
[1723382936520,7.29242857,2630.7,2629.8,2.4524]
[1723382936521,2.66153,2630.1,2629.8,2.4524]
[1723382937142,2.66153,2630.1,2629.4,2.66213]
[1723382937143,2.66175,2629.9,2629.4,2.4524]
[1723382937938,5.3231,2630.1,2629.4,5.626043]
[1723382938147,2.66161,2630.0,2629.4,5.626043]
[1723382938840,2.6617,2629.9,2629.4,2.963863]
[1723382939145,0.59565672,2631.1,2629.5,0.8288343]
[1723382939456,7.29242857,2631.3,2630.2,2.4524]
[1723382939457,2.66087,2630.8,2630.2,2.4524]
[1723382939642,2.66075,2630.9,2630.2,5.11379]
[1723382939643,2.66089,2630.7,2630.2,5.11379]
[1723382939849,2.66078,2630.8,2630.2,5.11379]
[1723382940020,5.32151,2630.9,2630.3,2.66128]
[1723382940355,5.32151,2630.9,2630.2,2.4524]
[1723382940356,2.66099,2630.6,2630.2,2.4524]
[1723382940924,0.532151,2630.9,2630.2,5.11378]
[1723382940925,2.66085,2630.8,2630.2,5.11378]
[1723382941425,5.32169,2630.8,2630.2,5.11378]
[1723382941621,2.66114,2630.5,2630.2,2.4524]
[1723382942836,2.66124,2630.4,2630.0,2.4524]
[1723382943225,2.66096,2630.7,2630.0,2.4524]
[1723382943226,2.66096,2630.7,2630.0,2.99764]
[1723382943554,2.66109,2630.5,2630.0,2.99764]
[1723382944264,2.66109,2630.5,2630.0,5.65919]
[1723382944638,2.66095,2630.7,2630.1,2.66148]
[1723382944857,2.66095,2630.7,2630.2,2.73737851]
[1723382945076,2.66095,2630.7,2630.2,3.50099985]
[1723382945356,2.66048,2631.1,2630.0,2.99764]
[1723382945559,2.66095,2630.7,2630.0,2.4524]
[1723382945759,7.29242857,2631.3,2630.0,2.4524]
[1723382945760,2.66076,2630.9,2630.3,2.66128]
[1723382945961,2.926816,2630.9,2630.1,2.66139]
[1723382946269,2.65999,2631.6,2630.1,2.66139]
[1723382946270,2.66004,2631.6,2630.9,2.66059]
[1723382946473,5.3201,2631.6,2631.0,0.0760042]
[1723382946757,3.19205,2631.6,2631.0,2.7365742]
[1723382946966,5.8521,2631.6,2631.0,0.0760042]
[1723382947136,3.19204,2631.6,2631.0,0.0760042]
[1723382947461,2.66008,2631.5,2631.0,0.0760042]
[1723382949556,2.65988,2631.7,2631.1,2.66047]
[1723382949858,2.65988,2631.7,2631.2,2.55650274]
[1723382950058,5.31981,2631.7,2631.2,2.55650274]
[1723382950282,2.65988,2631.7,2631.2,2.55650274]
[1723382950485,5.31981,2631.7,2631.2,2.55650274]
[1723382950795,2.424,2632.0,2631.2,2.4805]
[1723382951005,2.66044,2631.2,2630.8,2.4805]
[1723382951300,2.66053,2631.1,2630.8,2.4805]
[1723382951662,2.66069,2630.9,2630.5,2.4805]
[1723382952077,2.66084,2630.8,2630.2,5.14188]
[1723382952279,2.66068,2631.0,2630.3,2.66124]
[1723382952599,2.66068,2631.0,2630.5,2.66108]
[1723382952897,2.66088,2630.8,2630.3,0.04766239]
[1723382953102,2.66065,2631.0,2630.6,0.04758297]
[1723382953303,2.66065,2631.0,2630.3,2.66128]
[1723382953304,2.66065,2631.0,2630.4,2.66113]
[1723382953462,2.66085,2630.8,2630.2,5.14189]
[1723382953663,5.32132,2631.0,2630.5,0.04766864]
[1723382953902,2.6607,2630.9,2630.3,2.66121]
[1723382954115,2.6607,2630.9,2630.6,0.04761371]
[1723382954265,5.32131,2631.0,2630.6,0.04761371]
[1723382954466,2.66077,2630.9,2630.3,3.2268499]
[1723382954805,2.6608,2630.8,2630.7,0.04757245]
[1723382955012,5.66021,2631.4,2630.2,2.4805]
[1723382955013,2.66107,2630.6,2630.2,2.4805]
[1723382955172,2.66114,2630.5,2630.2,2.4805]
[1723382955371,5.08461,2631.0,2630.2,3.02855]
[1723382955372,5.32171,2630.8,2630.2,3.02855]
[1723382955572,2.6604,2631.2,2630.2,3.02855]
[1723382955573,2.66044,2631.2,2630.2,3.02855]
[1723382955798,2.66053,2631.1,2630.5,2.66103]
[1723382956000,2.66044,2631.2,2630.4,2.66119]
[1723382956181,2.66022,2631.4,2630.7,2.4805]
[1723382956516,2.66059,2631.0,2630.7,2.4805]
[1723382957008,5.32124,2631.0,2630.7,2.4805]
[1723382957225,2.66084,2630.8,2630.3,2.4805]
[1723382957776,2.66095,2630.7,2630.3,2.4805]
[1723382958199,2.66095,2630.7,2630.0,3.0]
[1723382958200,2.66116,2630.5,2630.0,3.0]
[1723382958503,2.66116,2630.5,2630.0,4.080376]
[1723382959505,2.66116,2630.5,2630.0,6.741966]
[1723382959972,2.66116,2630.5,2630.0,4.080376]
[1723382960174,5.32231,2630.5,2630.0,4.080376]
[1723382960476,2.66115,2630.5,2630.0,1.080376]
[1723382960778,2.66115,2630.5,2629.9,5.14213]
[1723382961116,2.66154,2630.1,2629.5,5.14255]
[1723382961327,2.6616,2630.0,2629.6,0.514255]
[1723382961484,2.6616,2630.0,2629.5,2.4805]
[1723382961485,2.6617,2629.9,2629.5,2.4805]
[1723382962378,2.66121,2630.4,2629.5,5.14259]
[1723382962379,2.66146,2630.2,2629.5,5.14259]
[1723382962605,2.66125,2630.4,2629.9,2.66164]
[1723382962818,2.66131,2630.3,2629.7,2.66181]
[1723382962996,2.66131,2630.3,2629.8,0.590986]
[1723382963209,2.66131,2630.3,2629.8,3.252776]
[1723382963398,2.66148,2630.2,2629.8,0.590986]
[1723382963725,2.66124,2630.4,2629.8,0.590986]
[1723382963886,2.66124,2630.4,2629.9,0.07603968]
[1723382964087,2.66115,2630.5,2630.0,2.66157]
[1723382964385,2.661,2630.6,2630.0,5.2181045]
[1723382964583,2.661,2630.6,2630.0,6.06517355]
[1723382964797,2.66092,2630.7,2630.0,3.32756905]
[1723382965016,2.66109,2630.5,2629.8,3.252776]
[1723382965287,2.66124,2630.4,2629.8,3.252776]
[1723382965901,2.66109,2630.5,2629.9,2.73771643]
[1723382966102,3.39019286,2630.7,2629.9,2.73771643]
[1723382966103,2.66094,2630.7,2630.1,2.66144]
[1723382966325,5.32189,2630.7,2630.1,3.20134164]
[1723382966628,2.66099,2630.6,2630.1,0.53990164]
[1723382966830,9.95322857,2630.8,2630.2,0.07602955]
[1723382967131,9.95322857,2630.8,2630.2,2.57412955]
[1723382967292,9.95322857,2630.8,2630.3,2.78380219]
[1723382967494,9.95322857,2630.8,2630.3,2.70777303]
[1723382967886,9.95322857,2630.8,2630.3,0.91687161]
[1723382968128,2.6608,2630.8,2630.3,3.50213228]
[1723382968291,5.32165,2630.8,2630.3,0.84084228]
[1723382968506,2.6611,2630.5,2630.3,0.04650303]
[1723382969028,2.66094,2630.7,2630.1,2.66148]
[1723382969326,2.66094,2630.7,2630.2,0.07602869]
[1723382969631,2.66094,2630.7,2630.2,0.96248094]
[1723382969835,2.66094,2630.7,2630.3,0.07602869]
[1723382970017,2.66094,2630.7,2630.4,0.04644467]
[1723382970938,2.66085,2630.8,2630.4,0.04644467]
[1723382971114,2.66085,2630.8,2630.2,3.50119087]
[1723382971313,2.66085,2630.8,2630.5,0.04638633]
[1723382971543,2.66085,2630.8,2630.3,0.35013209]
[1723382971740,2.66084,2630.8,2630.6,0.04632798]
[1723382971900,2.66084,2630.8,2630.2,2.6613]
[1723382972106,2.66084,2630.8,2630.7,0.04626964]
[1723382972335,2.66084,2630.8,2630.3,0.51594]
[1723382972509,2.66084,2630.8,2630.7,0.04622864]
[1723382972712,2.66116,2630.5,2630.1,2.4981]
[1723382972901,2.66116,2630.5,2629.9,3.0]
[1723382972902,2.66129,2630.3,2629.9,3.0]
[1723382973099,2.66145,2630.2,2629.7,2.66188]
[1723382973305,2.66127,2630.4,2629.8,5.66179]
[1723382973506,2.66127,2630.4,2629.9,0.566179]
[1723382973727,2.66134,2630.3,2629.9,0.566179]
[1723382973936,2.66134,2630.3,2629.6,2.66194]
[1723382974610,2.66134,2630.3,2629.6,5.32386]
[1723382974840,2.66134,2630.3,2629.6,2.66192]
[1723382975050,2.66134,2630.3,2629.8,2.66177]
[1723382975212,2.66134,2630.3,2629.8,3.194139]
[1723382976106,2.66134,2630.3,2629.8,0.532369]
[1723382976107,2.66139,2630.2,2629.8,0.532369]
[1723382977415,2.66151,2630.1,2629.8,0.532369]
[1723382977648,2.6615,2630.1,2629.8,0.532369]
[1723382977949,2.66138,2630.3,2629.7,2.66189]
[1723382978353,2.66139,2630.2,2629.7,2.66189]
[1723382978551,2.66139,2630.2,2629.7,3.444087]
[1723382979653,2.66139,2630.2,2629.7,0.782197]
[1723382980159,5.32287,2630.2,2629.7,0.782197]
[1723382980455,2.66139,2630.2,2629.7,0.782197]
[1723382980750,5.32283,2630.2,2629.7,0.782197]
[1723382980965,2.66149,2630.1,2629.7,0.782197]
[1723382981432,2.6616,2630.0,2629.7,0.782197]
[1723382981617,2.6616,2630.0,2629.6,3.0]
[1723382981821,2.6616,2630.0,2629.5,5.4981]
[1723382982020,2.6618,2629.8,2629.5,3.314139]
[1723382982221,2.66191,2629.7,2629.6,0.04558004]
[1723382982425,2.66191,2629.7,2629.2,2.4981]
[1723382982655,2.66201,2629.6,2629.3,0.04575522]
[1723382982865,2.66219,2629.5,2629.3,0.04575522]
[1723382983168,5.3244,2629.4,2629.3,0.04575522]
[1723382983464,2.66246,2629.2,2628.7,2.4981]
[1723382983632,2.66246,2629.2,2628.7,3.014211]
[1723382984324,2.66246,2629.2,2628.4,5.16131]
[1723382984325,2.66265,2629.0,2628.4,5.16131]
[1723382984865,2.66247,2629.2,2628.6,2.66301]
[1723382985022,2.66247,2629.2,2628.7,3.156251]
[1723382985235,12.61657857,2629.6,2628.9,2.6627]
[1723382985422,12.61657857,2629.6,2629.0,2.34646248]
[1723382985423,9.95448857,2629.6,2629.0,2.34646248]
[1723382985735,9.95448857,2629.6,2629.0,5.00901248]
[1723382985946,9.95448857,2629.6,2629.0,5.77617873]
[1723382986137,2.66221,2629.4,2629.0,3.03756625]
[1723382986678,2.66235,2629.3,2628.8,2.2704]
[1723382986886,2.66235,2629.3,2628.8,5.34646948]
[1723382987336,7.29242857,2629.6,2629.0,2.6626]
[1723382987539,2.66174,2629.9,2629.2,2.2704]
[1723382987785,2.4515,2630.1,2629.2,2.2704]
[1723382988098,2.66203,2629.6,2629.2,2.2704]
[1723382989182,2.66177,2629.9,2629.3,2.73830839]
[1723382989389,2.66177,2629.9,2629.3,3.23915923]
[1723382989604,2.66171,2629.9,2629.4,2.66214]
[1723382989773,2.66171,2629.9,2629.5,0.07605234]
[1723382989950,2.6618,2629.8,2629.3,3.16317084]
[1723382990155,2.6618,2629.8,2629.4,0.54335708]
[1723382990438,2.6618,2629.8,2629.4,0.04464892]
[1723382990763,5.32349,2629.9,2629.3,2.66227]
[1723382990951,2.6618,2629.8,2629.5,0.04457005]
[1723382991152,2.6618,2629.8,2629.4,0.04462844]
[1723382991338,2.6618,2629.8,2629.6,0.04451166]
[1723382991541,2.6618,2629.8,2629.5,0.04457005]
[1723382991851,2.6618,2629.8,2629.6,0.04451166]